[Event "*** Titled Tuesday Blitz"]
[Site "Chess.com"]
[Date "2020.10.20"]
[Round "8"]
[White "stolencandy13"]
[Black "cstevens1"]
[Result "0-1"]
[WhiteElo "2466"]
[BlackElo "2669"]
[TimeControl "180+1"]
[EndTime "11:38:41 PDT"]
[Termination "cstevens1 won by checkmate"]

1. e4 {[%clk 0:02:40]} 1... c5 {[%clk 0:02:22.8]} 2. Nf3 {[%clk 0:02:39.6]} 2...
e6 {[%clk 0:02:22.4]} 3. d4 {[%clk 0:02:40.2]} 3... cxd4 {[%clk 0:02:22.4]} 4.
Nxd4 {[%clk 0:02:41.1]} 4... a6 {[%clk 0:02:21.6]} 5. c4 {[%clk 0:02:41]} 5...
Qc7 {[%clk 0:02:21.3]} 6. Nc3 {[%clk 0:02:38.4]} 6... Nf6 {[%clk 0:02:21.4]} 7.
Be3 {[%clk 0:02:34.7]} 7... b6 {[%clk 0:02:21.4]} 8. Be2 {[%clk 0:02:32.2]} 8...
Bb7 {[%clk 0:02:21.6]} 9. Qd3 {[%clk 0:02:30.2]} 9... Nc6 {[%clk 0:02:21.6]} 10.
Nxc6 {[%clk 0:02:30]} 10... dxc6 {[%clk 0:02:18.2]} 11. O-O {[%clk 0:02:26.8]}
11... c5 {[%clk 0:02:18.3]} 12. f4 {[%clk 0:02:17.8]} 12... Rd8 {[%clk 0:02:10]}
13. Qc2 {[%clk 0:02:16.5]} 13... Be7 {[%clk 0:02:05.7]} 14. e5 {[%clk
0:02:08.7]} 14... Nd7 {[%clk 0:02:05.4]} 15. Bd3 {[%clk 0:01:58.2]} 15... g6
{[%clk 0:01:58.3]} 16. Be4 {[%clk 0:01:54.5]} 16... Nb8 {[%clk 0:01:37.3]} 17.
Bxb7 {[%clk 0:01:48.7]} 17... Qxb7 {[%clk 0:01:37.6]} 18. Ne4 {[%clk 0:01:31.2]}
18... Nc6 {[%clk 0:01:28.2]} 19. Nf6+ {[%clk 0:01:04.6]} 19... Bxf6 {[%clk
0:01:28]} 20. exf6 {[%clk 0:01:05.5]} 20... Nd4 {[%clk 0:01:23.4]} 21. Qf2
{[%clk 0:01:04.1]} 21... Qe4 {[%clk 0:00:38.1]} 22. Rad1 {[%clk 0:00:56.6]}
22... Nf5 {[%clk 0:00:22.8]} 23. Rxd8+ {[%clk 0:00:55.1]} 23... Kxd8 {[%clk
0:00:23.7]} 24. Rd1+ {[%clk 0:00:51.8]} 24... Kc8 {[%clk 0:00:23.3]} 25. Bxc5
{[%clk 0:00:39.1]} 25... bxc5 {[%clk 0:00:24.2]} 26. Qxc5+ {[%clk 0:00:39.1]}
26... Kb8 {[%clk 0:00:24.2]} 27. g4 {[%clk 0:00:20.3]} 27... Qe3+ {[%clk
0:00:23.6]} 28. Qxe3 {[%clk 0:00:19.3]} 28... Nxe3 {[%clk 0:00:24.5]} 29. Rd7
{[%clk 0:00:18.6]} 29... Nxg4 {[%clk 0:00:23.1]} 30. Rxf7 {[%clk 0:00:18.7]}
30... Nh6 {[%clk 0:00:15]} 31. Re7 {[%clk 0:00:16.5]} 31... Rf8 {[%clk
0:00:14.4]} 32. Rxe6 {[%clk 0:00:16.6]} 32... Ng4 {[%clk 0:00:14.3]} 33. Rxa6
{[%clk 0:00:16.5]} 33... Nxf6 {[%clk 0:00:13.7]} 34. Kg2 {[%clk 0:00:15.5]}
34... Nh5 {[%clk 0:00:13.8]} 35. Rb6+ {[%clk 0:00:13.3]} 35... Kc7 {[%clk
0:00:12.8]} 36. Ra6 {[%clk 0:00:13.5]} 36... Nxf4+ {[%clk 0:00:11.9]} 37. Kg3
{[%clk 0:00:11.9]} 37... Nd3 {[%clk 0:00:10.6]} 38. Ra7+ {[%clk 0:00:11.2]}
38... Kc6 {[%clk 0:00:10.6]} 39. Rxh7 {[%clk 0:00:12.1]} 39... Nxb2 {[%clk
0:00:10.2]} 40. Rh6 {[%clk 0:00:12.2]} 40... Rf6 {[%clk 0:00:10.3]} 41. Kg4
{[%clk 0:00:12.4]} 41... Nxc4 {[%clk 0:00:05.6]} 42. Kg5 {[%clk 0:00:12.7]}
42... Rf2 {[%clk 0:00:05.7]} 43. Rxg6+ {[%clk 0:00:12.9]} 43... Kc5 {[%clk
0:00:06.6]} 44. h4 {[%clk 0:00:13.5]} 44... Rxa2 {[%clk 0:00:06.5]} 45. h5
{[%clk 0:00:13.5]} 45... Ne5 {[%clk 0:00:05.8]} 46. Re6 {[%clk 0:00:12.4]} 46...
Kd5 {[%clk 0:00:05.9]} 47. Re8 {[%clk 0:00:12.4]} 47... Rg2+ {[%clk 0:00:06.3]}
48. Kf5 {[%clk 0:00:12.2]} 48... Rf2+ {[%clk 0:00:05.8]} 49. Kg5 {[%clk
0:00:12.2]} 49... Nf7+ {[%clk 0:00:05.7]} 50. Kg6 {[%clk 0:00:12.4]} 50... Ne5+
{[%clk 0:00:06]} 51. Kg5 {[%clk 0:00:12.9]} 51... Rg2+ {[%clk 0:00:06.1]} 52.
Kf5 {[%clk 0:00:13]} 52... Nf3 {[%clk 0:00:04.4]} 53. Rd8+ {[%clk 0:00:12.3]}
53... Kc4 {[%clk 0:00:03.8]} 54. h6 {[%clk 0:00:12.8]} 54... Rh2 {[%clk
0:00:04]} 55. Kg6 {[%clk 0:00:12.1]} 55... Nh4+ {[%clk 0:00:03.8]} 56. Kg5
{[%clk 0:00:11.7]} 56... Nf3+ {[%clk 0:00:04.1]} 57. Kg6 {[%clk 0:00:11.9]}
57... Ne5+ {[%clk 0:00:04.4]} 58. Kf5 {[%clk 0:00:11.8]} 58... Nc6 {[%clk
0:00:04.1]} 59. Rc8 {[%clk 0:00:11.4]} 59... Kd5 {[%clk 0:00:03.9]} 60. Kg6
{[%clk 0:00:10.2]} 60... Ne7+ {[%clk 0:00:04.1]} 61. Kg7 {[%clk 0:00:09.5]}
61... Nxc8 {[%clk 0:00:04.4]} 62. h7 {[%clk 0:00:10.4]} 62... Rg2+ {[%clk
0:00:04.3]} 63. Kf7 {[%clk 0:00:10.5]} 63... Nd6+ {[%clk 0:00:03.9]} 64. Kf6
{[%clk 0:00:09.2]} 64... Rh2 {[%clk 0:00:02.8]} 65. Kg7 {[%clk 0:00:08.2]} 65...
Ne8+ {[%clk 0:00:03.3]} 66. Kg8 {[%clk 0:00:08.4]} 66... Nf6+ {[%clk 0:00:03.7]}
67. Kg7 {[%clk 0:00:08.8]} 67... Rxh7+ {[%clk 0:00:04.4]} 68. Kxf6 {[%clk
0:00:08.7]} 68... Ra7 {[%clk 0:00:05.3]} 69. Kg6 {[%clk 0:00:09.6]} 69... Ke5
{[%clk 0:00:05.5]} 70. Kg5 {[%clk 0:00:09.5]} 70... Rg7+ {[%clk 0:00:05.6]} 71.
Kh6 {[%clk 0:00:09.9]} 71... Kf6 {[%clk 0:00:05.9]} 72. Kh5 {[%clk 0:00:10.4]}
72... Rg1 {[%clk 0:00:06.7]} 73. Kh4 {[%clk 0:00:10.8]} 73... Kf5 {[%clk
0:00:07.3]} 74. Kh3 {[%clk 0:00:11.6]} 74... Kf4 {[%clk 0:00:07.7]} 75. Kh2
{[%clk 0:00:12.5]} 75... Rg8 {[%clk 0:00:07.9]} 76. Kh3 {[%clk 0:00:13.3]} 76...
Rg7 {[%clk 0:00:08.3]} 77. Kh2 {[%clk 0:00:12.8]} 77... Kf3 {[%clk 0:00:08.6]}
78. Kh1 {[%clk 0:00:13.7]} 78... Kf2 {[%clk 0:00:08.9]} 79. Kh2 {[%clk
0:00:14.6]} 79... Rh7# {[%clk 0:00:09.5]} 0-1

[Event "*** Titled Tuesday Blitz"]
[Site "Chess.com"]
[Date "2020.10.20"]
[Round "8"]
[White "Sokoloco"]
[Black "Margency"]
[Result "0-1"]
[WhiteElo "2472"]
[BlackElo "2684"]
[TimeControl "180+1"]
[EndTime "11:38:49 PDT"]
[Termination "Margency won by resignation"]

1. b3 {[%clk 0:03:00.9]} 1... g6 {[%clk 0:02:59]} 2. Bb2 {[%clk 0:03:01.1]} 2...
Nf6 {[%clk 0:02:59.7]} 3. Bxf6 {[%clk 0:03:01.8]} 3... exf6 {[%clk 0:03:00.6]}
4. c4 {[%clk 0:03:02.1]} 4... f5 {[%clk 0:03:00.2]} 5. Nc3 {[%clk 0:03:01.4]}
5... d6 {[%clk 0:03:00.5]} 6. Nf3 {[%clk 0:02:59.2]} 6... Nd7 {[%clk 0:02:59.9]}
7. d4 {[%clk 0:02:58.9]} 7... Nf6 {[%clk 0:02:53.4]} 8. e3 {[%clk 0:02:46.1]}
8... Bg7 {[%clk 0:02:44.6]} 9. Bd3 {[%clk 0:02:41.4]} 9... O-O {[%clk
0:02:44.1]} 10. O-O {[%clk 0:02:41.7]} 10... c6 {[%clk 0:02:41.8]} 11. Rc1
{[%clk 0:02:29.3]} 11... Re8 {[%clk 0:02:39]} 12. d5 {[%clk 0:02:21.8]} 12... c5
{[%clk 0:02:38.3]} 13. Qc2 {[%clk 0:02:18.6]} 13... a6 {[%clk 0:02:37.3]} 14. a3
{[%clk 0:02:11.2]} 14... Bd7 {[%clk 0:02:35.6]} 15. b4 {[%clk 0:02:11.3]} 15...
b6 {[%clk 0:02:23.3]} 16. Rb1 {[%clk 0:02:04.2]} 16... Ng4 {[%clk 0:02:15.1]}
17. bxc5 {[%clk 0:01:50.6]} 17... bxc5 {[%clk 0:02:14.6]} 18. Rb7 {[%clk
0:01:50.5]} 18... Bc8 {[%clk 0:02:09.7]} 19. Rb3 {[%clk 0:01:47.3]} 19... Ra7
{[%clk 0:02:06.8]} 20. Rfb1 {[%clk 0:01:46.1]} 20... Rae7 {[%clk 0:02:06.3]} 21.
Ne2 {[%clk 0:01:38.7]} 21... Qa5 {[%clk 0:01:57.7]} 22. h3 {[%clk 0:01:21.2]}
22... Ne5 {[%clk 0:01:48.7]} 23. Nxe5 {[%clk 0:01:21.4]} 23... Bxe5 {[%clk
0:01:48.8]} 24. Qc1 {[%clk 0:01:09.3]} 24... Bd7 {[%clk 0:01:33.8]} 25. Rb7
{[%clk 0:01:05.4]} 25... Kg7 {[%clk 0:01:21.3]} 26. g3 {[%clk 0:00:28.5]} 26...
Bc8 {[%clk 0:00:56.3]} 27. Rb8 {[%clk 0:00:24.1]} 27... h5 {[%clk 0:00:45.5]}
28. h4 {[%clk 0:00:24.1]} 28... Bd7 {[%clk 0:00:44.4]} 29. R8b7 {[%clk 0:00:24]}
29... Ba4 {[%clk 0:00:44.2]} 30. Rxe7 {[%clk 0:00:13.8]} 30... Rxe7 {[%clk
0:00:45.1]} 31. Rb8 {[%clk 0:00:12.8]} 31... Qc7 {[%clk 0:00:38.4]} 32. Qb1
{[%clk 0:00:12.2]} 32... Qa5 {[%clk 0:00:27.3]} 33. Kg2 {[%clk 0:00:10.9]} 33...
Qd2 {[%clk 0:00:24.4]} 34. Nf4 {[%clk 0:00:08.7]} 34... Bd1 {[%clk 0:00:19.9]}
35. Bxf5 {[%clk 0:00:07.9]} 35... Qe1 {[%clk 0:00:17.8]} 36. Nxh5+ {[%clk
0:00:04.6]} 36... gxh5 {[%clk 0:00:16.9]} 37. Bh7 {[%clk 0:00:03.4]} 37... Bf6
{[%clk 0:00:12.6]} 38. Rg8+ {[%clk 0:00:03.6]} 38... Kh6 {[%clk 0:00:12.1]} 39.
Qf5 {[%clk 0:00:03.9]} 39... Bf3+ {[%clk 0:00:07.1]} 40. Qxf3 {[%clk 0:00:03.7]}
40... Kxh7 {[%clk 0:00:07.4]} 41. Rf8 {[%clk 0:00:03.4]} 41... Kg7 {[%clk
0:00:07.3]} 42. Rd8 {[%clk 0:00:03]} 42... Re5 {[%clk 0:00:07.4]} 43. Qf4 {[%clk
0:00:03]} 43... Qb1 {[%clk 0:00:05.6]} 44. Rd7 {[%clk 0:00:03.2]} 44... Qe4+
{[%clk 0:00:06.1]} 45. Qxe4 {[%clk 0:00:03.1]} 45... Rxe4 {[%clk 0:00:07]} 46.
Rxd6 {[%clk 0:00:04]} 46... Rxc4 {[%clk 0:00:07.5]} 47. Rc6 {[%clk 0:00:03.9]}
47... Rc2 {[%clk 0:00:07.6]} 48. d6 {[%clk 0:00:04.3]} 48... Kf8 {[%clk
0:00:06.9]} 49. Rc8+ {[%clk 0:00:04]} 49... Kg7 {[%clk 0:00:07.2]} 50. d7 {[%clk
0:00:04.6]} 50... Rd2 {[%clk 0:00:07.8]} 51. Rxc5 {[%clk 0:00:04.8]} 51... Rxd7
{[%clk 0:00:08.5]} 52. Rxh5 {[%clk 0:00:05.4]} 52... Rd2 {[%clk 0:00:08.8]} 53.
Ra5 {[%clk 0:00:05.6]} 53... Rc2 {[%clk 0:00:08.8]} 54. Rxa6 {[%clk 0:00:05.7]}
54... Bc3 {[%clk 0:00:09.7]} 55. Kf3 {[%clk 0:00:04.6]} 55... Be1 {[%clk
0:00:09.8]} 56. Kg4 {[%clk 0:00:05.3]} 56... Rxf2 {[%clk 0:00:10.1]} 57. e4
{[%clk 0:00:05.5]} 57... Rg2 {[%clk 0:00:10.4]} 58. Rd6 {[%clk 0:00:04.1]} 58...
Rxg3+ {[%clk 0:00:10.5]} 59. Kf5 {[%clk 0:00:04.3]} 59... Rxa3 {[%clk 0:00:11]}
60. Rd7 {[%clk 0:00:03.8]} 60... Bxh4 {[%clk 0:00:10.9]} 61. e5 {[%clk
0:00:04.2]} 61... Ra6 {[%clk 0:00:11.1]} 62. Rc7 {[%clk 0:00:04.1]} 62... Re6
{[%clk 0:00:11]} 63. Rb7 {[%clk 0:00:04.5]} 63... Bg3 {[%clk 0:00:11.1]} 64. Rb5
{[%clk 0:00:04.5]} 64... Bh2 {[%clk 0:00:10.9]} 65. Rd5 {[%clk 0:00:04.7]} 65...
Bg1 {[%clk 0:00:10.6]} 66. Rb5 {[%clk 0:00:05.1]} 66... Bb6 {[%clk 0:00:11]} 67.
Rd5 {[%clk 0:00:04.9]} 67... Kf8 {[%clk 0:00:11]} 68. Rd7 {[%clk 0:00:04.9]}
68... Kg7 {[%clk 0:00:10.2]} 69. Rb7 {[%clk 0:00:04.6]} 69... Bd4 {[%clk
0:00:10.3]} 70. Rb5 {[%clk 0:00:05.1]} 70... Bc3 {[%clk 0:00:09.5]} 71. Rd5
{[%clk 0:00:05.3]} 71... Rxe5+ {[%clk 0:00:09]} 72. Rxe5 {[%clk 0:00:05.2]}
72... Bxe5 {[%clk 0:00:09.6]} 73. Kxe5 {[%clk 0:00:06.1]} 73... Kg6 {[%clk
0:00:10.2]} 74. Ke4 {[%clk 0:00:06.1]} 74... Kg5 {[%clk 0:00:10.5]} 75. Ke3
{[%clk 0:00:06.9]} 75... Kg4 {[%clk 0:00:10.7]} 76. Ke2 {[%clk 0:00:07.6]} 76...
Kf4 {[%clk 0:00:10.3]} 77. Kf2 {[%clk 0:00:08.5]} 77... f5 {[%clk 0:00:10.5]}
78. Ke2 {[%clk 0:00:09.2]} 78... Kg3 {[%clk 0:00:10.9]} 79. Kf1 {[%clk
0:00:09.9]} 79... f4 {[%clk 0:00:10.1]} 80. Kg1 {[%clk 0:00:10.5]} 80... f3
{[%clk 0:00:10.3]} 81. Kh1 {[%clk 0:00:09.7]} 81... Kf2 {[%clk 0:00:09.7]} 82.
Kh2 {[%clk 0:00:09.9]} 82... Ke2 {[%clk 0:00:10.3]} 0-1

[Event "*** Titled Tuesday Blitz"]
[Site "Chess.com"]
[Date "2020.10.20"]
[Round "8"]
[White "sjam6687"]
[Black "VerdeNotte"]
[Result "0-1"]
[WhiteElo "2666"]
[BlackElo "2870"]
[TimeControl "180+1"]
[EndTime "11:38:50 PDT"]
[Termination "VerdeNotte won on time"]

1. d4 {[%clk 0:03:00]} 1... Nf6 {[%clk 0:02:59.9]} 2. c4 {[%clk 0:02:58.3]} 2...
g6 {[%clk 0:03:00.1]} 3. Nc3 {[%clk 0:02:57.4]} 3... Bg7 {[%clk 0:03:00.5]} 4.
e4 {[%clk 0:02:56.4]} 4... d6 {[%clk 0:03:00.8]} 5. f4 {[%clk 0:02:55.9]} 5...
O-O {[%clk 0:02:59.8]} 6. Nf3 {[%clk 0:02:53.2]} 6... c5 {[%clk 0:03:00.1]} 7.
d5 {[%clk 0:02:51.2]} 7... e6 {[%clk 0:03:00]} 8. Bd3 {[%clk 0:02:44.7]} 8...
exd5 {[%clk 0:03:00]} 9. cxd5 {[%clk 0:02:45.5]} 9... b5 {[%clk 0:02:58.4]} 10.
Nxb5 {[%clk 0:02:38]} 10... Nxe4 {[%clk 0:02:49.6]} 11. O-O {[%clk 0:02:30.3]}
11... Re8 {[%clk 0:02:39.7]} 12. Re1 {[%clk 0:02:20.9]} 12... a6 {[%clk
0:02:37.7]} 13. Na3 {[%clk 0:02:17.8]} 13... Nf6 {[%clk 0:02:37.3]} 14. Nc4
{[%clk 0:02:14.8]} 14... Rxe1+ {[%clk 0:02:28]} 15. Qxe1 {[%clk 0:02:15.3]}
15... Bg4 {[%clk 0:02:19.6]} 16. Be4 {[%clk 0:01:55.5]} 16... Nxe4 {[%clk
0:01:55.4]} 17. Qxe4 {[%clk 0:01:56]} 17... Nd7 {[%clk 0:01:54.2]} 18. h3 {[%clk
0:01:52.3]} 18... Nf6 {[%clk 0:01:52.7]} 19. Qd3 {[%clk 0:01:46.3]} 19... Bf5
{[%clk 0:01:50.3]} 20. Qe2 {[%clk 0:01:45.6]} 20... Be4 {[%clk 0:01:44]} 21. Be3
{[%clk 0:01:39.5]} 21... Nxd5 {[%clk 0:01:40.7]} 22. Bf2 {[%clk 0:01:35.5]}
22... Bf5 {[%clk 0:01:28.1]} 23. Rd1 {[%clk 0:01:32.4]} 23... Nxf4 {[%clk
0:01:27.7]} 24. Qe3 {[%clk 0:01:26.9]} 24... Bh6 {[%clk 0:01:17.5]} 25. Qa3
{[%clk 0:01:16.6]} 25... d5 {[%clk 0:01:10.2]} 26. Ne3 {[%clk 0:01:14.2]} 26...
Be4 {[%clk 0:01:03.7]} 27. Ng4 {[%clk 0:01:14.4]} 27... Bf8 {[%clk 0:00:55.4]}
28. Bh4 {[%clk 0:01:07.8]} 28... Be7 {[%clk 0:00:42.1]} 29. Bxe7 {[%clk
0:01:04.9]} 29... Qxe7 {[%clk 0:00:42.2]} 30. Re1 {[%clk 0:01:02.5]} 30... h5
{[%clk 0:00:36]} 31. Nf2 {[%clk 0:00:58.4]} 31... Qb7 {[%clk 0:00:26.1]} 32. Qe3
{[%clk 0:00:55.1]} 32... Ne6 {[%clk 0:00:19.8]} 33. Nxe4 {[%clk 0:00:54]} 33...
dxe4 {[%clk 0:00:20.3]} 34. Qxe4 {[%clk 0:00:52.8]} 34... Qxe4 {[%clk
0:00:18.1]} 35. Rxe4 {[%clk 0:00:53.4]} 35... Rd8 {[%clk 0:00:18.3]} 36. Ra4
{[%clk 0:00:51.7]} 36... Rd6 {[%clk 0:00:18.5]} 37. Ne5 {[%clk 0:00:51.7]} 37...
Kg7 {[%clk 0:00:17.1]} 38. Nc4 {[%clk 0:00:50.4]} 38... Rd4 {[%clk 0:00:15.9]}
39. b3 {[%clk 0:00:49.6]} 39... Nc7 {[%clk 0:00:15.9]} 40. Ra5 {[%clk
0:00:45.6]} 40... Rd5 {[%clk 0:00:16.4]} 41. Ra4 {[%clk 0:00:44.3]} 41... Kf6
{[%clk 0:00:16.1]} 42. Kf2 {[%clk 0:00:43.4]} 42... Rf5+ {[%clk 0:00:12.7]} 43.
Ke3 {[%clk 0:00:41.4]} 43... Rg5 {[%clk 0:00:13.2]} 44. Kf3 {[%clk 0:00:39.4]}
44... Rf5+ {[%clk 0:00:12.9]} 45. Ke3 {[%clk 0:00:39.5]} 45... Nd5+ {[%clk
0:00:12.6]} 46. Kd3 {[%clk 0:00:36.4]} 46... Nb4+ {[%clk 0:00:12.7]} 47. Ke4
{[%clk 0:00:34.8]} 47... Rf2 {[%clk 0:00:10.8]} 48. g4 {[%clk 0:00:31.6]} 48...
Rxa2 {[%clk 0:00:09.2]} 49. Rxa2 {[%clk 0:00:28.7]} 49... Nxa2 {[%clk
0:00:10.1]} 50. gxh5 {[%clk 0:00:28]} 50... gxh5 {[%clk 0:00:11]} 51. Kf4 {[%clk
0:00:28.2]} 51... Nb4 {[%clk 0:00:10.9]} 52. Na5 {[%clk 0:00:24.6]} 52... Nd5+
{[%clk 0:00:10]} 53. Ke4 {[%clk 0:00:24.2]} 53... Ke6 {[%clk 0:00:08.3]} 54. Nb7
{[%clk 0:00:21.4]} 54... Nf6+ {[%clk 0:00:08.7]} 55. Kf4 {[%clk 0:00:21]} 55...
Nd7 {[%clk 0:00:04.8]} 56. Kg5 {[%clk 0:00:17.8]} 56... Ke5 {[%clk 0:00:04.3]}
57. Kxh5 {[%clk 0:00:17.6]} 57... Kf4 {[%clk 0:00:04.9]} 58. h4 {[%clk
0:00:16.9]} 58... f5 {[%clk 0:00:03.6]} 59. Kg6 {[%clk 0:00:16.4]} 59... Kg4
{[%clk 0:00:03.5]} 60. h5 {[%clk 0:00:15.7]} 60... f4 {[%clk 0:00:04.1]} 61. Nd6
{[%clk 0:00:14.5]} 61... f3 {[%clk 0:00:03.9]} 62. Nc4 {[%clk 0:00:14]} 62...
Kf4 {[%clk 0:00:03]} 63. h6 {[%clk 0:00:11.4]} 63... f2 {[%clk 0:00:01.6]} 64.
Nd2 {[%clk 0:00:10.1]} 64... Ke3 {[%clk 0:00:02.2]} 65. Nf1+ {[%clk 0:00:08.6]}
65... Ke2 {[%clk 0:00:03.1]} 66. Ng3+ {[%clk 0:00:06.6]} 66... Kf3 {[%clk
0:00:03.4]} 67. Nf1 {[%clk 0:00:05.7]} 67... c4 {[%clk 0:00:04]} 68. bxc4 {[%clk
0:00:04]} 68... Ke2 {[%clk 0:00:04.5]} 69. Ng3+ {[%clk 0:00:01.2]} 69... Kf3
{[%clk 0:00:05]} 0-1

[Event "*** Titled Tuesday Blitz"]
[Site "Chess.com"]
[Date "2020.10.20"]
[Round "8"]
[White "ikhasu"]
[Black "A-S-00"]
[Result "1-0"]
[WhiteElo "2419"]
[BlackElo "2289"]
[TimeControl "180+1"]
[EndTime "11:38:51 PDT"]
[Termination "ikhasu won on time"]

1. Nf3 {[%clk 0:02:59.2]} 1... d5 {[%clk 0:02:58.8]} 2. g3 {[%clk 0:02:59]} 2...
Nf6 {[%clk 0:02:58.4]} 3. Bg2 {[%clk 0:02:59.4]} 3... c5 {[%clk 0:02:58.5]} 4.
b3 {[%clk 0:02:59.1]} 4... Nc6 {[%clk 0:02:58]} 5. Bb2 {[%clk 0:02:59.5]} 5...
g6 {[%clk 0:02:54.8]} 6. O-O {[%clk 0:02:55.3]} 6... Bg7 {[%clk 0:02:54.9]} 7.
d3 {[%clk 0:02:37.8]} 7... O-O {[%clk 0:02:54]} 8. Nbd2 {[%clk 0:02:33.3]} 8...
Qc7 {[%clk 0:02:50.8]} 9. Qe1 {[%clk 0:02:28.6]} 9... e5 {[%clk 0:02:48.5]} 10.
e4 {[%clk 0:02:22.5]} 10... d4 {[%clk 0:02:47.7]} 11. a4 {[%clk 0:02:22]} 11...
Rb8 {[%clk 0:02:36.9]} 12. Nc4 {[%clk 0:02:21.4]} 12... Be6 {[%clk 0:02:35.5]}
13. Ng5 {[%clk 0:02:15.6]} 13... Bxc4 {[%clk 0:02:34.2]} 14. bxc4 {[%clk
0:02:15.7]} 14... h6 {[%clk 0:02:33.4]} 15. Nh3 {[%clk 0:02:14.8]} 15... Nb4
{[%clk 0:02:33]} 16. Qe2 {[%clk 0:02:08.3]} 16... Nd7 {[%clk 0:02:30.6]} 17. f4
{[%clk 0:02:07.4]} 17... exf4 {[%clk 0:02:17.5]} 18. gxf4 {[%clk 0:01:58.6]}
18... Rbe8 {[%clk 0:02:15.5]} 19. Qf2 {[%clk 0:01:52.4]} 19... Nf6 {[%clk
0:02:10.3]} 20. Ba3 {[%clk 0:01:45.9]} 20... Ng4 {[%clk 0:02:07.9]} 21. Qe2
{[%clk 0:01:42.9]} 21... Ne3 {[%clk 0:02:07.5]} 22. Rfc1 {[%clk 0:01:33.9]}
22... Qd7 {[%clk 0:01:29.5]} 23. a5 {[%clk 0:01:25.9]} 23... f5 {[%clk 0:01:15]}
24. e5 {[%clk 0:01:21.5]} 24... g5 {[%clk 0:01:14.4]} 25. c3 {[%clk 0:01:20.6]}
25... Nxg2 {[%clk 0:00:51.2]} 26. cxb4 {[%clk 0:01:17.2]} 26... Nxf4 {[%clk
0:00:49.5]} 27. Nxf4 {[%clk 0:01:15.1]} 27... gxf4 {[%clk 0:00:49.5]} 28. Kh1
{[%clk 0:01:10]} 28... Rxe5 {[%clk 0:00:49]} 29. Qg2 {[%clk 0:01:09.1]} 29...
Rfe8 {[%clk 0:00:47.6]} 30. Rg1 {[%clk 0:01:04.5]} 30... Re2 {[%clk 0:00:44.5]}
31. Qf3 {[%clk 0:01:04.7]} 31... R8e3 {[%clk 0:00:41.5]} 32. Qd5+ {[%clk
0:00:44.6]} 32... Qxd5+ {[%clk 0:00:39.9]} 33. cxd5 {[%clk 0:00:44.9]} 33...
cxb4 {[%clk 0:00:32.8]} 34. Bxb4 {[%clk 0:00:44.7]} 34... Kf7 {[%clk 0:00:29.5]}
35. Rac1 {[%clk 0:00:43.7]} 35... Rh3 {[%clk 0:00:20.7]} 36. Rc7+ {[%clk
0:00:40.4]} 36... Kf6 {[%clk 0:00:20.2]} 37. Rgxg7 {[%clk 0:00:34.5]} 37...
Rexh2+ {[%clk 0:00:19.2]} 38. Kg1 {[%clk 0:00:34.9]} 38... Rh1+ {[%clk
0:00:18.6]} 39. Kf2 {[%clk 0:00:31]} 39... R1h2+ {[%clk 0:00:18]} 40. Rg2 {[%clk
0:00:30.5]} 40... Rxg2+ {[%clk 0:00:17.8]} 41. Kxg2 {[%clk 0:00:30.8]} 41...
Rg3+ {[%clk 0:00:18.1]} 42. Kf2 {[%clk 0:00:30.8]} 42... Rg8 {[%clk 0:00:13.4]}
43. d6 {[%clk 0:00:30.6]} 43... Rd8 {[%clk 0:00:13.1]} 44. Kf3 {[%clk
0:00:26.5]} 44... h5 {[%clk 0:00:09.8]} 45. Kxf4 {[%clk 0:00:26.2]} 45... h4
{[%clk 0:00:10.1]} 46. Rh7 {[%clk 0:00:26.2]} 46... b6 {[%clk 0:00:08.3]} 47.
axb6 {[%clk 0:00:25.4]} 47... axb6 {[%clk 0:00:08.4]} 48. d7 {[%clk 0:00:25.9]}
48... Ke6 {[%clk 0:00:07.9]} 49. Re7+ {[%clk 0:00:20.9]} 49... Kd5 {[%clk
0:00:06.5]} 50. Kxf5 {[%clk 0:00:18.3]} 50... h3 {[%clk 0:00:05.8]} 51. Rh7
{[%clk 0:00:12.2]} 51... h2 {[%clk 0:00:05.7]} 52. Rxh2 {[%clk 0:00:08.8]} 52...
Rxd7 {[%clk 0:00:04.9]} 53. Rh5 {[%clk 0:00:08.5]} 53... Kc6 {[%clk 0:00:03.3]}
54. Ke4 {[%clk 0:00:07.9]} 54... b5 {[%clk 0:00:02.7]} 55. Re5 {[%clk
0:00:07.5]} 55... Kb6 {[%clk 0:00:02.7]} 56. Re6+ {[%clk 0:00:07.4]} 56... Kb7
{[%clk 0:00:02.9]} 57. Rd6 {[%clk 0:00:07.8]} 57... Re7+ {[%clk 0:00:03]} 58.
Kxd4 {[%clk 0:00:08]} 58... Re2 {[%clk 0:00:03]} 59. Kc5 {[%clk 0:00:05.1]}
59... Kc7 {[%clk 0:00:03]} 60. Kxb5 {[%clk 0:00:04.7]} 60... Rb2 {[%clk
0:00:03.3]} 61. Rc6+ {[%clk 0:00:04.6]} 61... Kb7 {[%clk 0:00:03.1]} 62. Rh6
{[%clk 0:00:04.3]} 62... Rc2 {[%clk 0:00:03]} 63. Rh7+ {[%clk 0:00:04.6]} 63...
Kb8 {[%clk 0:00:03.2]} 64. d4 {[%clk 0:00:05]} 64... Kc8 {[%clk 0:00:03.3]} 65.
d5 {[%clk 0:00:04.9]} 65... Kd8 {[%clk 0:00:03.5]} 66. Kb6 {[%clk 0:00:04.4]}
66... Rd2 {[%clk 0:00:03.5]} 67. Kc6 {[%clk 0:00:04.3]} 67... Rd3 {[%clk
0:00:02.7]} 68. d6 {[%clk 0:00:03.2]} 1-0